fUST/lending_fUST_20241106
["ID","MTS","AMOUNT","RATE_DAILY","PERIOD"]
[341455277,1730903432600,-3000.0,0.00024481,2]
[341455278,1730903432610,-250.0,0.0002458,2]
[341455279,1730903432619,-422.151749,0.00024822,2]
[341455280,1730903432628,-166.666666,0.00024879,2]
[341455281,1730903432637,-549.25918081,0.00024967,2]
[341455282,1730903432648,-500.0,0.00024967,2]
[341455283,1730903432657,-2194.7773577,0.00024993,2]
[341455284,1730903432666,-2614.315791,0.00025199,2]
[341455285,1730903432676,-166.666666,0.00025539,2]
[341455286,1730903432685,-2614.315791,0.00025884,2]
[341455287,1730903432695,-174.019578,0.0002611,2]
[341455288,1730903432704,-174.019578,0.00026129,2]
[341455289,1730903432714,-174.019578,0.00026148,2]
[341455290,1730903432723,-174.019578,0.00026166,2]
[341455291,1730903432733,-420.0,0.0002617,2]
[341455292,1730903432742,-174.019578,0.00026185,2]
[341455293,1730903432752,-166.666666,0.00026199,2]
[341455294,1730903432762,-174.019578,0.00026204,2]
[341455295,1730903432771,-174.019578,0.00026222,2]
[341455296,1730903432781,-174.019578,0.00026241,2]
[341455297,1730903432790,-1000.0,0.00026337,2]
[341455298,1730903432802,-2614.315791,0.00026568,2]
[341455299,1730903432811,-166.666666,0.0002686,2]
[341455300,1730903432820,-3498.52749482,0.00026882,2]
[341455301,1730903432829,-506.1997249,0.00027373,2]
[341455302,1730903432838,-500.0,0.00027373,2]
[341455303,1730903432847,-298.2638634,0.00027373,2]
[341455304,1730903432856,-496.1,0.00027387,3]
[341455305,1730903432866,-172.65,0.00027387,10]
[341455306,1730903432875,-863.25,0.00027387,10]
[341455307,1730903432885,-236.1116618,0.00027396,2]
[341455308,1730903432895,-440.29443185,0.00027396,2]
[341455309,1730903432905,-165.27816326,0.00027396,2]
[341455310,1730903432914,-500.0,0.00027397,2]
[341455311,1730903432924,-500.0,0.00027397,2]
[341455312,1730903432934,-500.0,0.00027397,2]
[341455313,1730903432946,-501.72671402,0.00027397,2]
[341455314,1730903432955,-500.0,0.00027397,2]
[341455315,1730903432965,-507.61721567,0.00027397,2]
[341455316,1730903432975,-500.0,0.00027397,2]
[341455317,1730903432985,-247.54,0.00027397,2]
[341455318,1730903432995,-500.0,0.00027397,2]
[341455319,1730903433004,-518.48730457,0.00027397,2]
[341455320,1730903433014,-508.88495406,0.00027397,2]
[341455321,1730903433023,-509.29596702,0.00027397,2]
[341455322,1730903433033,-500.0,0.00027397,2]
[341455323,1730903433042,-500.0,0.00027397,2]
[341455324,1730903433054,-500.0,0.00027397,2]
[341455325,1730903433064,-984.70064036,0.00027397,2]
[341455326,1730903433074,-500.0,0.00027397,2]
[341455327,1730903433083,-500.0,0.00027397,2]
[341455328,1730903433093,-500.0,0.00027397,2]
[341455329,1730903433103,-500.0,0.00027397,2]
[341455330,1730903433113,-500.0,0.00027397,2]
[341455331,1730903433122,-500.0,0.00027397,2]
[341455332,1730903433132,-500.0,0.00027397,2]
[341455333,1730903433142,-500.0,0.00027397,2]
[341455334,1730903433151,-500.0,0.00027397,2]
[341455335,1730903433161,-500.0,0.00027397,2]
[341455336,1730903433171,-500.0,0.00027397,2]
[341455337,1730903433180,-500.0,0.00027397,2]
[341455338,1730903433190,-468.3863131,0.00027397,2]
[341455339,1730903433200,-500.0,0.00027397,2]
[341455340,1730903433214,-500.0,0.00027397,2]
[341455341,1730903433224,-500.0,0.00027397,2]
[341455342,1730903433233,-500.0,0.00027397,2]
[341455343,1730903433243,-231.9095538,0.00027397,2]
[341455344,1730903433253,-500.0,0.00027397,2]
[341455345,1730903433262,-634.28449563,0.00027397,2]
[341455346,1730903433273,-500.0,0.00027397,2]
[341455347,1730903433285,-500.0,0.00027397,2]
[341455348,1730903433294,-500.0,0.00027397,2]
[341455349,1730903433306,-500.0,0.00027397,2]
[341455350,1730903433317,-500.0,0.00027397,2]
[341455351,1730903433329,-502.23842673,0.00027397,2]
[341455352,1730903433339,-500.0,0.00027397,2]
[341455353,1730903433348,-500.0,0.00027397,2]
[341455354,1730903433358,-500.0,0.00027397,2]
[341455355,1730903433368,-500.0,0.00027397,2]
[341455356,1730903433379,-523.86963658,0.00027397,2]
[341455357,1730903433389,-500.0,0.00027397,2]
[341455358,1730903433399,-500.0,0.00027397,2]
[341455359,1730903433409,-169.68108327,0.00027397,2]
[341455360,1730903433419,-576.9839297,0.00027397,2]
[341455361,1730903433429,-500.0,0.00027397,2]
[341455362,1730903433439,-500.0,0.00027397,2]
[341455363,1730903433449,-1370.2,0.00027397,2]
[341455364,1730903433459,-512.52357782,0.00027397,2]
[341455365,1730903433469,-514.39995687,0.00027397,2]
[341455366,1730903433490,-500.0,0.00027397,2]
[341455367,1730903433500,-500.0,0.00027397,2]
[341455368,1730903433511,-500.0,0.00027397,2]
[341455369,1730903433521,-500.0,0.00027397,2]
[341455370,1730903433531,-500.0,0.00027397,2]
[341455371,1730903433542,-500.0,0.00027397,2]
[341455372,1730903433553,-500.0,0.00027397,2]
[341455373,1730903433563,-1120.05,0.00027397,2]
[341455374,1730903433573,-500.0,0.00027397,2]
[341455375,1730903433583,-155.86566885,0.00027397,2]
[341455376,1730903433594,-500.0,0.00027397,2]
[341455377,1730903433603,-500.0,0.00027397,2]
[341455378,1730903433613,-500.0,0.00027397,2]
[341455379,1730903433623,-500.0,0.00027397,2]
[341455380,1730903433633,-500.0,0.00027397,2]
[341455381,1730903433642,-500.0,0.00027397,2]
[341455382,1730903433653,-500.0,0.00027397,2]
[341455383,1730903433663,-500.0,0.00027397,2]
[341455384,1730903433672,-500.0,0.00027397,2]
[341455385,1730903433683,-529.71572403,0.00027397,2]
[341455386,1730903433692,-505.08451933,0.00027397,2]
[341455387,1730903433702,-500.0,0.00027397,2]
[341455388,1730903433712,-500.0,0.00027397,2]
[341455389,1730903433723,-314.72661052,0.00027397,2]
[341455390,1730903433732,-500.0,0.00027397,2]
[341455391,1730903433744,-500.0,0.00027397,2]
[341455392,1730903433754,-500.0,0.00027397,2]
[341455393,1730903433764,-513.40865992,0.00027397,2]
[341455394,1730903433775,-503.39696246,0.00027397,2]
[341455395,1730903433784,-506.38186849,0.00027397,2]
[341455396,1730903433794,-500.0,0.00027397,2]
[341455397,1730903433809,-500.0,0.00027397,2]
[341455398,1730903433819,-500.0,0.00027397,2]
[341455399,1730903433829,-500.0,0.00027397,2]
[341455400,1730903433838,-507.313442,0.00027397,2]
[341455401,1730903433848,-500.0,0.00027397,2]
[341455402,1730903433858,-500.0,0.00027397,2]
[341455403,1730903433868,-500.0,0.00027397,2]
[341455404,1730903433878,-500.0,0.00027397,2]
[341455405,1730903433888,-500.0,0.00027397,2]
[341455406,1730903433897,-500.0,0.00027397,2]
[341455407,1730903433907,-500.0,0.00027397,2]
[341455408,1730903433916,-500.0,0.00027397,2]
[341455409,1730903433926,-500.0,0.00027397,2]
[341455410,1730903433937,-608.54,0.00027397,2]
[341455411,1730903433947,-500.0,0.00027397,2]
[341455412,1730903433957,-500.0,0.00027397,2]
[341455413,1730903433967,-517.87198795,0.00027397,2]
[341455414,1730903433976,-166.666666,0.0002752,2]
[341455415,1730903433987,-500.0,0.00027569,2]
[341455416,1730903433997,-241.60184233,0.00027569,2]
[341455417,1730903434007,-500.0,0.0002757,2]
[341455418,1730903434017,-500.0,0.0002757,2]
[341455419,1730903434026,-500.0,0.0002757,2]
[341455420,1730903434037,-500.0,0.0002757,2]
[341455421,1730903434049,-500.0,0.0002757,2]
[341455422,1730903434059,-500.0,0.0002757,2]
[341455423,1730903434068,-500.0,0.0002757,2]
[341455424,1730903434078,-500.0,0.0002757,2]
[341455425,1730903434088,-543.32057159,0.0002757,2]
[341455426,1730903434102,-500.0,0.0002757,2]
[341455427,1730903434113,-500.0,0.0002757,2]
[341455428,1730903434125,-500.0,0.0002757,2]
[341455429,1730903434136,-500.0,0.0002757,2]
[341455430,1730903434148,-500.0,0.0002757,2]
[341455431,1730903434158,-500.0,0.0002757,2]
[341455432,1730903434168,-500.0,0.0002757,2]
[341455433,1730903434178,-500.0,0.0002757,2]
[341455434,1730903434189,-500.0,0.0002757,2]
[341455435,1730903434203,-500.0,0.0002757,2]
[341455436,1730903434215,-151.8622092,0.0002757,2]
[341455450,1730903438475,-427.64213475,0.00024378,2]
[341455452,1730903438486,-250.0,0.00024378,2]
[341455454,1730903438496,-593.74132561,0.00024378,2]
[341455456,1730903438505,-500.0,0.00024378,2]
[341455458,1730903438515,-500.0,0.00024378,2]
[341455459,1730903438524,-274.61653964,0.00024378,2]
[341455472,1730903438637,-225.38346036,0.00024378,2]
[341455474,1730903438646,-283.24255774,0.00024378,2]
[341455476,1730903438656,-250.0,0.00024658,2]
[341455478,1730903438665,-500.0,0.00024658,2]
[341455480,1730903438676,-232.73306305,0.00024658,2]
[341455482,1730903438685,-621.96835653,0.00027373,2]
[341455484,1730903438695,-500.0,0.00027373,2]
[341455486,1730903438705,-500.0,0.00027373,2]
[341455488,1730903438715,-500.0,0.00027397,2]
[341455490,1730903438725,-500.0,0.00027397,2]
[341455492,1730903438735,-500.0,0.00027397,2]
[341455495,1730903438747,-421.77102609,0.00027397,2]
[341455497,1730903438757,-500.0,0.00027397,2]
[341455499,1730903438768,-500.0,0.00027397,2]
[341455501,1730903438777,-500.0,0.00027397,2]
[341455503,1730903438787,-500.0,0.00027397,2]
[341455505,1730903438797,-500.0,0.00027397,2]
[341455507,1730903438807,-500.0,0.00027397,2]
[341455509,1730903438817,-500.0,0.00027397,2]
[341455511,1730903438827,-500.0,0.00027397,2]
[341455513,1730903438836,-500.0,0.00027397,2]
[341455515,1730903438845,-500.0,0.00027397,2]
[341455517,1730903438858,-500.0,0.00027397,2]
[341455520,1730903438871,-353.63365965,0.0002757,2]
[341455522,1730903438880,-519.06445102,0.0002757,2]
[341455524,1730903438890,-500.0,0.0002757,2]
[341455526,1730903438899,-500.0,0.0002757,2]
[341455528,1730903438910,-500.0,0.0002757,2]
[341455530,1730903438919,-500.0,0.0002757,2]
[341455532,1730903438929,-500.0,0.0002757,2]
[341455534,1730903438939,-500.0,0.0002757,2]
[341455536,1730903438949,-500.0,0.0002757,2]
[341455538,1730903438960,-500.0,0.0002757,2]
[341455540,1730903438971,-503.09019801,0.0002757,2]
[341455542,1730903438982,-601.50978115,0.0002757,2]
[341455545,1730903438992,-201.36559308,0.0002757,2]
[341455547,1730903439002,-501.5829973,0.0002757,2]
[341455549,1730903439012,-500.0,0.0002757,2]
[341455551,1730903439021,-500.0,0.0002757,2]
[341455552,1730903439030,-500.0,0.0002757,2]
[341455555,1730903439040,-500.0,0.0002757,2]
[341455556,1730903439050,-506.37505722,0.0002757,2]
[341455559,1730903439062,-500.0,0.00027669,2]
[341455561,1730903439072,-593.5031005,0.00027669,2]
[341455563,1730903439082,-507.01009758,0.00027669,2]
[341455565,1730903439092,-500.0,0.00027669,2]
[341455567,1730903439102,-500.0,0.00027669,2]
[341455569,1730903439113,-500.0,0.00027669,2]
[341455571,1730903439122,-608.69904442,0.00027669,2]
[341455573,1730903439133,-500.0,0.00027669,2]
[341455575,1730903439143,-502.9267445,0.00027669,2]
[341455577,1730903439154,-500.0,0.00027669,2]
[341455579,1730903439164,-200.0,0.00027669,2]
[341455582,1730903439174,-517.25868287,0.00027669,2]
[341455583,1730903439183,-500.0,0.00027669,2]
[341455586,1730903439193,-531.16173908,0.00027669,2]
[341455588,1730903439206,-512.05915916,0.00027669,2]
[341455590,1730903439219,-504.03967886,0.00027669,2]
[341455592,1730903439228,-500.0,0.00027669,2]
[341455594,1730903439238,-500.0,0.00027669,2]
[341455596,1730903439248,-500.0,0.00027669,2]
[341455598,1730903439257,-500.0,0.00027669,2]
[341455600,1730903439266,-500.0,0.00027669,2]
[341455602,1730903439276,-154.93615645,0.00027669,2]
[341455604,1730903439289,-601.51269133,0.00027669,2]
[341455606,1730903439299,-500.0,0.00027669,2]
[341455608,1730903439311,-500.0,0.00027669,2]
[341455610,1730903439328,-504.77029019,0.00027669,2]
[341455612,1730903439338,-500.0,0.00027669,2]
[341455614,1730903439347,-500.0,0.00027669,2]
[341455616,1730903439357,-504.78670592,0.00027669,2]
[341455629,1730903439477,-500.0,0.00027669,2]
[341455631,1730903439488,-500.0,0.00027669,2]
[341455633,1730903439499,-177.74154196,0.00027669,2]
[341455635,1730903439510,-500.0,0.00027669,2]
[341455637,1730903439521,-500.0,0.00027669,2]
[341455639,1730903439531,-500.0,0.00027669,2]
[341455641,1730903439541,-500.0,0.00027669,2]
[341455643,1730903439551,-517.24202184,0.00027669,2]
[341455645,1730903439564,-639.63,0.00027669,2]
[341455647,1730903439573,-410.02634442,0.00027669,2]
[341455649,1730903439583,-500.0,0.00027669,2]
[341455651,1730903439593,-500.0,0.00027669,2]
[341455653,1730903439603,-500.0,0.00027669,2]
[341455655,1730903439613,-500.0,0.00027669,2]
[341455658,1730903439624,-500.0,0.00027669,2]
[341455660,1730903439634,-500.0,0.00027669,2]
[341455662,1730903439643,-500.0,0.00027669,2]
[341455664,1730903439652,-500.0,0.00027669,2]
[341455666,1730903439663,-500.0,0.00027669,2]
[341455668,1730903439672,-513.49959736,0.00027669,2]
[341455670,1730903439683,-500.0,0.00027669,2]
[341455672,1730903439693,-500.0,0.00027669,2]
[341455674,1730903439702,-500.0,0.00027669,2]
[341455676,1730903439712,-506.78023568,0.00027669,2]
[341455678,1730903439721,-1000.0,0.00027669,2]
[341455680,1730903439730,-500.0,0.00027669,2]
[341455682,1730903439740,-500.0,0.00027669,2]
[341455684,1730903439749,-501.67122313,0.00027669,2]
[341455686,1730903439759,-579.27289145,0.00027669,2]
[341455688,1730903439768,-478.09538804,0.00027669,2]
[341455690,1730903439778,-500.0,0.00027669,2]
[341455692,1730903439787,-500.0,0.00027669,2]
[341455695,1730903439797,-500.0,0.00027669,2]
[341455697,1730903439807,-500.0,0.00027669,2]
[341455701,1730903439817,-500.0,0.00027669,2]
[341455703,1730903439827,-500.0,0.00027669,2]
[341455705,1730903439837,-500.0,0.00027669,2]
[341455707,1730903439848,-500.0,0.00027669,2]
[341455709,1730903439857,-500.0,0.00027669,2]
[341455711,1730903439868,-500.0,0.00027669,2]
[341455713,1730903439879,-500.0,0.00027669,2]
[341455715,1730903439889,-502.93889895,0.00027669,2]
[341455717,1730903439899,-500.0,0.00027669,2]
[341455719,1730903439911,-500.0,0.00027669,2]
[341455721,1730903439923,-243.10379335,0.00027669,2]
[341455724,1730903439935,-500.0,0.00027669,2]
[341455726,1730903439946,-500.0,0.00027669,2]
[341455728,1730903439955,-500.0,0.00027669,2]
[341455730,1730903439965,-392.82644048,0.00027669,2]
[341455732,1730903439975,-239.50785385,0.00027669,2]
[341455734,1730903439984,-500.0,0.00027669,2]
[341455736,1730903439994,-487.67324672,0.00027669,2]
[341455738,1730903440003,-500.0,0.00027669,2]
[341455740,1730903440013,-500.0,0.00027669,2]
[341455742,1730903440022,-500.0,0.00027669,2]
[341455744,1730903440031,-500.0,0.00027669,2]
[341455746,1730903440041,-500.0,0.00027669,2]
[341455748,1730903440050,-500.0,0.00027669,2]
[341455749,1730903440062,-500.0,0.00027669,2]
[341455750,1730903440071,-500.0,0.00027669,2]
[341455751,1730903440081,-500.0,0.00027669,2]
[341455752,1730903440090,-241.63817057,0.00027669,2]
[341455753,1730903440100,-500.0,0.00027669,2]
[341455754,1730903440109,-455.3171686,0.00027669,2]
[341455755,1730903440119,-500.0,0.00027669,2]
[341455756,1730903440129,-500.0,0.00027669,2]
[341455757,1730903440138,-500.0,0.00027669,2]
[341455758,1730903440148,-515.57914577,0.00027669,2]
[341455759,1730903440159,-500.0,0.00027669,2]
[341455760,1730903440168,-500.0,0.00027669,2]
[341455761,1730903440179,-500.0,0.00027669,2]
[341455762,1730903440190,-509.86861745,0.00027669,2]
[341455763,1730903440201,-639.69912856,0.00027669,2]
[341455764,1730903440213,-500.0,0.00027669,2]
[341455765,1730903440224,-500.0,0.00027669,2]
[341455766,1730903440233,-505.89633493,0.00027669,2]
[341455767,1730903440242,-500.0,0.00027669,2]
[341455768,1730903440255,-500.0,0.00027669,2]
[341455770,1730903440265,-500.0,0.00027669,2]
[341455772,1730903440274,-500.0,0.00027669,2]
[341455774,1730903440287,-500.0,0.00027669,2]
[341455776,1730903440299,-500.0,0.00027669,2]
[341455778,1730903440311,-500.0,0.00027669,2]
[341455781,1730903440323,-500.0,0.00027669,2]
[341455783,1730903440332,-500.0,0.00027669,2]
[341455785,1730903440342,-507.09671671,0.00027669,2]
[341455787,1730903440351,-500.0,0.00027669,2]
[341455789,1730903440361,-500.0,0.00027669,2]
[341455791,1730903440372,-500.0,0.00027669,2]
[341455793,1730903440382,-500.0,0.00027669,2]
[341455795,1730903440393,-613.65,0.00027669,2]
[341455797,1730903440402,-622.67866678,0.00027669,2]
[341455799,1730903440412,-619.05773818,0.00027669,2]
[341455801,1730903440421,-500.0,0.00027669,2]
[341455803,1730903440430,-500.0,0.0002767,2]
[341455805,1730903440440,-515.30521748,0.0002767,2]
[341455807,1730903440449,-500.0,0.0002767,2]
[341455809,1730903440459,-508.05296724,0.0002767,2]
[341455811,1730903440468,-500.0,0.0002767,2]
[341455813,1730903440478,-500.0,0.0002767,2]
[341455815,1730903440488,-503.43504948,0.0002767,2]
[341455817,1730903440497,-500.0,0.0002767,2]
[341455820,1730903440507,-500.0,0.0002767,2]
[341455821,1730903440516,-500.0,0.0002767,2]
[341455823,1730903440525,-500.0,0.0002767,2]
[341455826,1730903440535,-500.0,0.0002767,2]
[341455828,1730903440546,-538.94247471,0.0002767,2]
[341455830,1730903440557,-500.0,0.0002767,2]
[341455831,1730903440568,-500.0,0.0002767,2]
[341455833,1730903440577,-500.0,0.0002767,2]
[341455835,1730903440587,-500.0,0.0002767,2]
[341455837,1730903440596,-500.0,0.0002767,2]
[341455839,1730903440605,-500.0,0.0002767,2]
[341455841,1730903440614,-500.0,0.0002767,2]
[341455842,1730903440623,-500.0,0.0002767,2]
[341455843,1730903440633,-500.0,0.0002767,2]
[341455844,1730903440642,-500.0,0.0002767,2]
[341455845,1730903440651,-458.47404901,0.0002767,2]
[341455846,1730903440661,-500.0,0.0002767,2]
[341455847,1730903440670,-500.0,0.0002767,2]
[341455848,1730903440679,-505.98128109,0.0002767,2]
[341455849,1730903440689,-503.82290893,0.0002767,2]
[341455850,1730903440699,-500.0,0.0002767,2]
[341455851,1730903440708,-528.99017279,0.0002767,2]
[341455852,1730903440717,-500.0,0.0002767,2]
[341455853,1730903440727,-512.41716238,0.0002767,2]
[341455854,1730903440737,-500.0,0.0002767,2]
[341455855,1730903440746,-500.0,0.0002767,2]
[341455856,1730903440756,-500.0,0.0002767,2]
[341455857,1730903440767,-500.0,0.0002767,2]
[341455858,1730903440777,-500.0,0.0002767,2]
[341455860,1730903440786,-500.0,0.0002767,2]
[341455862,1730903440796,-500.0,0.0002767,2]
[341455863,1730903440808,-500.0,0.0002767,2]
[341455865,1730903440818,-500.0,0.0002767,2]
[341455866,1730903440827,-500.0,0.0002767,2]
[341455867,1730903440836,-500.0,0.0002767,2]
[341455869,1730903440846,-500.0,0.0002767,2]
[341455870,1730903440855,-639.27801344,0.0002767,2]
[341455871,1730903440867,-500.0,0.0002767,2]
[341455872,1730903440876,-504.37206655,0.0002767,2]
[341455873,1730903440885,-500.0,0.0002767,2]
[341455874,1730903440894,-500.0,0.0002767,2]
[341455875,1730903440903,-500.0,0.0002767,2]
[341455876,1730903440913,-500.0,0.0002767,2]
[341455877,1730903440923,-596.07390242,0.00027671,2]
[341455878,1730903440933,-500.0,0.00027671,2]
[341455879,1730903440942,-152.79097722,0.00027671,2]
[341455880,1730903440951,-500.0,0.00027671,2]
[341455881,1730903440961,-512.47080336,0.00027671,2]
[341455882,1730903440970,-500.0,0.00027671,2]
[341455883,1730903440979,-507.66462134,0.00027671,2]
[341455884,1730903440989,-500.0,0.00027671,2]
[341455885,1730903440998,-500.0,0.00027671,2]
[341455886,1730903441008,-500.0,0.00027671,2]
[341455887,1730903441017,-500.0,0.00027671,2]
[341455888,1730903441027,-520.02456677,0.00027671,2]
[341455889,1730903441037,-500.0,0.00027671,2]
[341455890,1730903441046,-500.0,0.00027671,2]
[341455891,1730903441059,-509.26549508,0.00027671,2]
[341455892,1730903441068,-1370.2,0.00027671,2]
[341455893,1730903441078,-551.04,0.00027671,2]
[341455894,1730903441088,-501.58909139,0.00027671,2]
[341455895,1730903441100,-532.24557625,0.00027671,2]
[341455896,1730903441110,-1120.05,0.00027671,2]
[341455897,1730903441120,-500.0,0.00027671,2]
[341455898,1730903441132,-500.0,0.00027671,2]
[341455899,1730903441142,-500.0,0.00027671,2]
[341455900,1730903441151,-512.35021148,0.00027671,2]
[341455901,1730903441160,-500.0,0.00027671,2]
[341455902,1730903441170,-508.65226021,0.00027671,2]
[341455903,1730903441179,-500.0,0.00027672,2]
[341455904,1730903441189,-500.0,0.00027673,5]
[341455905,1730903441199,-502.6661399,0.00027673,5]
[341455906,1730903441213,-503.45751418,0.00027673,5]
[341455907,1730903441224,-500.0,0.00027673,5]
[341455908,1730903441234,-500.0,0.00027842,2]
[341455909,1730903441246,-500.0,0.00027844,2]
[341455910,1730903441256,-500.0,0.00027844,2]
[341455911,1730903441266,-510.82683208,0.00027844,2]
[341455912,1730903441278,-500.0,0.00027844,2]
[341455913,1730903441289,-505.84372696,0.00027844,2]
[341455914,1730903441299,-500.0,0.00027844,2]
[341455915,1730903441312,-500.0,0.00027844,2]
[341455916,1730903441322,-500.0,0.00027844,2]
[341455917,1730903441331,-347.94726095,0.00027844,2]
[341455918,1730903441341,-500.0,0.00027844,2]
[341455919,1730903441351,-176.13,0.00027844,2]
[341455920,1730903441360,-237.07,0.00027844,2]
[341455921,1730903441370,-500.0,0.00027844,2]
[341455922,1730903441380,-500.0,0.00027844,2]
[341455923,1730903441389,-500.0,0.00027844,2]
[341455924,1730903441399,-1000.0,0.00027844,2]
[341455925,1730903441408,-500.0,0.00027853,2]
[341455926,1730903441417,-500.0,0.00027853,2]
[341455927,1730903441427,-1123.2151354,0.00027853,2]
[341455928,1730903441436,-500.0,0.00027853,2]
[341455929,1730903441446,-500.0,0.00027853,2]
[341455930,1730903441455,-500.0,0.00027853,2]
[341455931,1730903441464,-500.0,0.00027907,2]
[341455932,1730903441474,-500.0,0.00027907,2]
[341455933,1730903441484,-403.00586668,0.00027943,2]
[341455934,1730903441493,-512.1042587,0.00027943,2]
[341455935,1730903441502,-500.0,0.00027943,2]
[341455936,1730903441512,-300.36854448,0.00027943,2]
[341455937,1730903441522,-363.43056581,0.00027943,2]
[341455938,1730903441532,-500.0,0.00027943,2]
[341455939,1730903441541,-500.0,0.00027943,2]
[341455940,1730903441550,-500.0,0.00027943,2]
[341455941,1730903441564,-477.4010151,0.00027943,2]
[341455942,1730903441573,-503.28666067,0.00027943,2]
[341455943,1730903441583,-409.53301792,0.00027943,2]
[341455944,1730903441592,-535.59079288,0.00027943,2]
[341455945,1730903441602,-500.0,0.00027943,2]
[341455946,1730903441611,-500.0,0.00027943,2]
[341455947,1730903441620,-151.0,0.00027943,7]
[341455948,1730903441630,-151.0,0.00027943,7]
[341455949,1730903441639,-284.72704998,0.00027943,2]
[341455950,1730903441648,-500.0,0.00027943,2]
[341455951,1730903441658,-512.41471936,0.00027943,2]
[341455952,1730903441667,-151.0,0.00027943,7]
[341455953,1730903441677,-151.0,0.00027943,7]
[341455954,1730903441686,-151.0,0.00027943,7]
[341455955,1730903441696,-151.0,0.00027943,7]
[341455956,1730903441705,-151.0,0.00027943,7]
[341455957,1730903441714,-500.0,0.00027944,2]
[341455958,1730903441723,-500.0,0.00027944,2]
[341455959,1730903441734,-559.57650477,0.00027944,2]
[341455960,1730903441743,-500.0,0.00027944,2]
[341455961,1730903441752,-629.46211331,0.00027944,2]
[341455962,1730903441762,-500.0,0.00027944,2]
[341455963,1730903441771,-500.0,0.00027944,2]
[341455964,1730903441780,-500.0,0.00027944,2]
[341455965,1730903441790,-500.0,0.00027944,2]
[341455966,1730903441801,-500.0,0.00027944,2]
[341455967,1730903441818,-500.0,0.00027944,2]
[341455968,1730903441831,-500.0,0.00027944,2]
[341455969,1730903441840,-151.0,0.00027944,7]
[341455970,1730903441849,-500.0,0.00027944,2]
[341455971,1730903441859,-151.0,0.00027944,7]
[341455972,1730903441870,-151.0,0.00027944,7]
[341455973,1730903441880,-500.0,0.00027945,2]
[341455974,1730903441890,-1370.2,0.00027945,2]
[341455975,1730903441899,-1120.05,0.00027945,2]
[341455976,1730903441909,-26441.52959135,0.0002799,2]
[341455977,1730903441918,-959.92547128,0.00028,2]
[341455978,1730903442015,-153.0,0.00028055,2]
[341455979,1730903442026,-153.0,0.00028055,2]
[341455980,1730903442035,-153.0,0.00028055,2]
[341455981,1730903442045,-379.0,0.00028116,2]
[341455982,1730903442057,-296.51,0.00028118,2]
[341455983,1730903442067,-590.11,0.00028118,2]
[341455984,1730903442078,-500.0,0.00028127,2]
[341455985,1730903442091,-500.0,0.00028127,2]
[341455986,1730903442101,-500.0,0.00028127,2]
[341455987,1730903442112,-151.0,0.00028127,7]
[341455988,1730903442123,-569.77,0.00028217,2]
[341455989,1730903442134,-500.0,0.00028217,2]
[341455990,1730903442143,-527.9120363,0.00028218,2]
[341455991,1730903442153,-500.0,0.00028219,2]
[341455992,1730903442163,-1370.2,0.00028219,2]
[341455993,1730903442173,-1120.05,0.00028219,2]
[341455994,1730903442183,-587.0,0.00028376,2]